bitfinex/quotes_ETHUSD_20230113
["timestamp","ask_amount","ask_price","bid_price","bid_amount"]
[1673629720529,0.08844291,1412.2,1412.1,43.31294829]
[1673629720749,0.08844291,1412.2,1412.1,39.68367921]
[1673629721056,0.07026943,1412.3,1412.2,0.10585592]
[1673629721374,0.07026943,1412.3,1412.2,36.98587521]
[1673629721547,0.07026943,1412.3,1412.2,40.29874467]
[1673629721778,0.07026943,1412.3,1412.2,38.71025205]
[1673629723598,9.43e-06,1412.3,1412.2,43.57628269]
[1673629723761,9.43e-06,1412.3,1412.2,43.87535641]
[1673629724937,9.43e-06,1412.3,1412.2,44.10535641]
[1673629725280,8.96129188,1412.6,1412.3,2.5]
[1673629725600,0.05639188,1412.6,1412.5,22.73692]
[1673629725754,0.16401047,1412.7,1412.5,30.80485336]
[1673629725969,0.10761859,1412.7,1412.6,27.92423806]
[1673629726219,0.10761859,1412.7,1412.6,30.93871335]
[1673629726438,0.10761859,1412.7,1412.6,32.33047005]
[1673629726597,0.10761859,1412.7,1412.6,32.33050069]
[1673629726803,0.10761859,1412.7,1412.6,30.93871335]
[1673629728388,0.10761859,1412.7,1412.6,32.33021131]
[1673629728609,0.10761859,1412.7,1412.6,30.93871335]
[1673629729381,0.10761859,1412.7,1412.6,20.77908801]
[1673629729535,0.10761859,1412.7,1412.6,27.85822801]
[1673629730429,0.10761859,1412.7,1412.6,13.69994801]
[1673629730688,0.10761859,1412.7,1412.6,6.62080801]
[1673629731152,0.10761859,1412.7,1412.6,13.69994801]
[1673629731365,0.10761859,1412.7,1412.6,6.62080801]
[1673629731897,0.10761859,1412.7,1412.6,13.69994801]
[1673629733908,0.10761859,1412.7,1412.6,20.77908801]
[1673629734072,0.10761859,1412.7,1412.6,13.69994801]
[1673629734933,0.10761859,1412.7,1412.6,6.62080801]
[1673629735370,0.10761859,1412.7,1412.6,3.01447529]
[1673629735543,7.18625859,1412.7,1412.5,3.06447529]
[1673629735757,7.18625859,1412.7,1412.6,3.0]
[1673629735758,7.24265047,1412.7,1412.6,3.0]
[1673629735998,0.16401047,1412.7,1412.6,3.0]
[1673629736192,0.10761859,1412.7,1412.6,3.0]
[1673629737852,7.18625859,1412.7,1412.5,3.06447529]
[1673629738065,0.16401047,1412.7,1412.5,10.07956]
[1673629738278,0.16401047,1412.7,1412.5,3.01447529]
[1673629738279,7.18630859,1412.7,1412.5,3.01447529]
[1673629738509,14.32139047,1412.7,1412.5,3.0]
[1673629738712,8.30378536,1412.7,1412.5,3.0]
[1673629740008,1.22509536,1412.7,1412.5,3.0]
[1673629740201,1.16870348,1412.7,1412.5,3.0]
[1673629740800,1.61661859,1412.7,1412.5,3.0]
[1673629741465,1.61661859,1412.7,1412.4,7.14433529]
[1673629741675,1.505,1412.5,1412.4,0.01447529]
[1673629741887,15.66428,1412.5,1412.2,0.10585592]
[1673629742212,1.509,1412.4,1412.2,0.10585592]
[1673629742805,1.509,1412.4,1412.2,3.10585592]
[1673629744062,1.509,1412.4,1412.2,17.26813592]
[1673629744272,1.509,1412.4,1412.2,24.36375121]
[1673629745055,1.509,1412.5,1412.2,31.38597201]
[1673629745274,1.509,1412.5,1412.2,33.08585992]
[1673629745495,22.41169188,1412.6,1412.3,4.99802657]
[1673629745648,22.41169188,1412.6,1412.4,10.08014]
[1673629746001,22.41169188,1412.6,1412.4,17.17475529]
[1673629746373,22.41169188,1412.6,1412.5,5.92498263]
[1673629746581,22.41169188,1412.6,1412.5,5.93945792]
[1673629746833,22.41169188,1412.6,1412.5,0.01447529]
[1673629747040,14.26319188,1412.6,1412.4,3.0]
[1673629747319,21.34233188,1412.6,1412.4,3.0]
[1673629747537,14.26319188,1412.6,1412.4,3.0]
[1673629747768,21.34233188,1412.6,1412.4,3.0]
[1673629750824,14.26319188,1412.6,1412.4,17.16025]
[1673629751031,13.73219188,1412.6,1412.4,17.17472529]
[1673629753338,13.68219188,1412.6,1412.4,3.01447529]
[1673629753547,13.68219188,1412.6,1412.4,10.08014]
[1673629753789,13.68219188,1412.6,1412.4,10.09461529]
[1673629754215,13.68219188,1412.6,1412.4,17.17475529]
[1673629754544,13.68219188,1412.6,1412.4,27.1518261]
[1673629754927,12.22619188,1412.6,1412.4,30.75815882]
[1673629755468,12.22619188,1412.6,1412.4,32.45808281]
[1673629756527,12.22619188,1412.6,1412.4,33.51601288]
[1673629756858,12.22619188,1412.6,1412.4,32.45808281]
[1673629757169,12.22619188,1412.6,1412.4,25.37794281]
[1673629757376,12.22619188,1412.6,1412.5,2.53779428]
[1673629757588,12.22619188,1412.6,1412.5,16.69707428]
[1673629757803,12.22619188,1412.6,1412.5,28.18280891]
[1673629757961,12.22619188,1412.6,1412.5,31.78914163]
[1673629758400,12.22419188,1412.6,1412.5,33.48867696]
[1673629758699,12.22619188,1412.6,1412.5,33.48867696]
[1673629760326,0.05639188,1412.6,1412.5,33.48867696]
[1673629760489,0.10761859,1412.7,1412.5,33.48867696]
[1673629760709,0.10761859,1412.7,1412.6,9.95520042]
[1673629761070,0.10761859,1412.7,1412.6,31.20709571]
[1673629761794,0.10761859,1412.7,1412.6,32.5982935]
[1673629762209,0.10761859,1412.7,1412.6,31.20709571]
[1673629763962,0.10761859,1412.7,1412.6,32.59808795]
[1673629764155,0.10761859,1412.7,1412.6,31.20709571]
[1673629764686,0.10761859,1412.7,1412.6,32.59812381]
[1673629765190,0.10761859,1412.7,1412.6,32.59813256]
[1673629766206,0.10761859,1412.7,1412.6,32.59834774]
[1673629767420,0.10761859,1412.7,1412.6,34.29757924]
[1673629768313,0.10761859,1412.7,1412.6,32.59834774]
[1673629769148,0.10761859,1412.7,1412.6,34.29771959]
[1673629769465,0.10761859,1412.7,1412.6,32.59834774]
[1673629770284,0.10761859,1412.7,1412.6,34.29775259]
[1673629771133,0.10761859,1412.7,1412.6,35.35568266]
[1673629771755,0.10761859,1412.7,1412.6,36.85968266]
[1673629771952,0.10761859,1412.7,1412.6,38.44657777]
[1673629772157,0.10761859,1412.7,1412.6,38.44525569]
[1673629772372,0.10761859,1412.7,1412.6,37.3886477]
[1673629772786,0.10761859,1412.7,1412.6,38.44523642]
[1673629772993,0.10761859,1412.7,1412.6,37.3886477]
[1673629773992,0.10761859,1412.7,1412.6,38.44519066]
[1673629774610,0.10761859,1412.7,1412.6,37.3886477]
[1673629775114,0.10761859,1412.8,1412.7,26.51674824]
[1673629775341,0.10761859,1412.8,1412.7,41.30853784]
[1673629775981,0.10761859,1412.8,1412.7,42.36466896]
[1673629776311,0.10761859,1412.8,1412.7,41.30853784]
[1673629776473,0.10761859,1412.8,1412.7,41.30653784]
[1673629777132,0.10761859,1412.8,1412.7,42.81153784]
[1673629777936,0.10761859,1412.8,1412.7,43.86766896]
[1673629778406,0.10761859,1412.8,1412.7,50.94630896]
[1673629779455,8.59e-06,1412.8,1412.7,50.94630896]
[1673629779624,0.11594953,1412.9,1412.7,54.75076808]
[1673629779836,0.11594953,1412.9,1412.8,18.17206641]
[1673629780157,0.11594953,1412.9,1412.8,36.21555685]
[1673629780672,0.11594953,1412.9,1412.8,34.71955685]
[1673629781124,0.11594953,1412.9,1412.8,36.41062734]
[1673629781736,0.11594953,1412.9,1412.8,34.71955685]
[1673629781942,0.11594953,1412.9,1412.8,36.41052098]
[1673629782172,0.11594953,1412.9,1412.8,34.71955685]
[1673629782352,0.11594953,1412.9,1412.8,33.32830482]
[1673629782567,0.11594953,1412.9,1412.8,34.71126343]
[1673629784160,0.11594953,1412.9,1412.8,34.71065585]
[1673629784367,0.11594953,1412.9,1412.8,33.32830482]
[1673629785448,0.11594953,1412.9,1412.8,34.71091866]
[1673629786362,0.11594953,1412.9,1412.8,36.40112335]
[1673629787016,0.11594953,1412.9,1412.8,34.71091866]
[1673629787402,0.06594953,1412.9,1412.8,34.71091866]
[1673629788920,0.06594953,1412.9,1412.8,36.40128759]
[1673629789330,0.06594953,1412.9,1412.8,27.85322801]
[1673629791959,0.06594953,1412.9,1412.8,30.92723491]
[1673629792170,0.06594953,1412.9,1412.8,29.23627207]
[1673629792816,0.06594953,1412.9,1412.8,27.85322801]
[1673629794486,0.06594953,1413.0,1412.9,29.28410113]
[1673629794693,0.06594953,1413.0,1412.9,33.08018111]
[1673629795846,0.06594953,1413.0,1412.9,33.08019062]
[1673629797008,9.53e-06,1413.0,1412.9,33.08019062]
[1673629797259,0.11999508,1413.1,1412.9,34.13632174]
[1673629797478,0.11999508,1413.1,1413.0,10.01996489]
[1673629797636,0.11999508,1413.1,1413.0,31.26386018]
[1673629798433,1.49999508,1413.1,1413.0,27.85022801]
[1673629798575,0.11999508,1413.1,1413.0,27.85022801]
[1673629800595,1.49999508,1413.1,1413.0,24.24389529]
[1673629802161,0.11999508,1413.1,1413.0,24.16914217]
[1673629802411,1.49999508,1413.1,1413.0,24.16914217]
[1673629802568,0.11999508,1413.1,1413.0,24.16914217]
[1673629802783,0.11999508,1413.1,1413.0,24.46798503]
[1673629803467,0.11999508,1413.1,1413.0,24.46794726]
[1673629806073,0.11999508,1413.1,1413.0,27.82113224]
[1673629807304,0.11999508,1413.1,1413.0,24.46794726]
[1673629807673,1.49999508,1413.1,1413.0,24.46794726]
[1673629807979,1.49999508,1413.1,1413.0,24.16914217]
[1673629810000,1.49999508,1413.1,1413.0,21.24389529]
[1673629810367,6.57007997,1413.1,1413.0,14.16675529]
[1673629810572,5.57782101,1413.1,1413.0,7.08961529]
[1673629810896,7.16935692,1413.1,1413.0,0.01247529]
[1673629811164,18.39150539,1413.1,1412.8,7.09055529]
[1673629811350,1.509,1412.9,1412.8,0.01247529]
[1673629811518,1.509,1412.9,1412.7,7.09085529]
[1673629812077,1.509,1412.9,1412.7,0.01247529]
[1673629812290,1.509,1412.9,1412.6,15.22836641]
[1673629812516,1.509,1412.9,1412.6,8.14948641]
[1673629812727,1.509,1412.9,1412.6,7.09335529]
[1673629812940,1.509,1412.9,1412.7,0.09920618]
[1673629813251,1.509,1412.9,1412.8,7.07814]
[1673629813476,1.509,1412.9,1412.8,21.24689529]
[1673629813772,11.3405131,1413.0,1412.8,21.24689529]
[1673629815726,10.28109188,1413.0,1412.8,21.24689529]
[1673629816838,9.75019188,1413.0,1412.8,21.24689529]
[1673629819324,9.75019188,1413.0,1412.8,25.24636105]
[1673629819325,8.24919188,1413.0,1412.8,25.24636105]
[1673629819502,8.24919188,1413.0,1412.9,0.09905902]
[1673629819741,8.24919188,1413.0,1412.9,1.46805902]
[1673629820033,0.05639188,1413.0,1412.9,22.70097902]
[1673629820247,1.62899508,1413.1,1412.9,22.71345431]
[1673629820494,1.62899508,1413.1,1412.9,22.61439529]
[1673629820715,0.11999508,1413.1,1412.9,22.61439529]
[1673629821129,0.65079508,1413.1,1412.9,22.61439529]
[1673629821732,0.65079508,1413.1,1412.9,25.92697902]
[1673629821940,0.11999508,1413.1,1413.0,2.8479719]
[1673629822190,0.11999508,1413.1,1413.0,24.0793919]
[1673629822428,0.11999508,1413.1,1413.0,24.09186719]
[1673629823428,0.11999508,1413.1,1413.0,22.71186719]
[1673629823646,0.11999508,1413.1,1413.0,22.61289529]
[1673629824316,1.49999508,1413.1,1413.0,7.08961529]
[1673629824603,0.11999508,1413.1,1413.0,7.08961529]
[1673629824827,0.11999508,1413.1,1413.0,21.24389529]
[1673629829762,0.11999508,1413.1,1413.0,21.34302591]
[1673629829763,0.11664637,1413.1,1413.0,21.34302591]
[1673629830688,0.11664637,1413.1,1413.0,21.24389529]
[1673629834125,0.11664637,1413.1,1413.0,24.08121782]
[1673629834632,0.11664637,1413.1,1413.0,24.26241706]
[1673629835961,0.11664637,1413.1,1413.0,25.31854818]
[1673629836262,0.11664637,1413.1,1413.0,33.51177601]
[1673629836472,0.11664637,1413.1,1413.0,34.25005177]
[1673629837785,0.11664637,1413.1,1413.0,31.60702554]
[1673629840946,0.11664637,1413.1,1413.0,31.4258263]
[1673629842829,0.11664637,1413.1,1413.0,32.48195742]
[1673629843309,0.11664637,1413.1,1413.0,31.74368166]
[1673629843522,0.11664637,1413.1,1413.0,31.74168166]
[1673629849569,6.37e-06,1413.1,1413.0,31.74168166]
[1673629850573,6.37e-06,1413.1,1413.0,33.32772761]
[1673629850782,6.37e-06,1413.1,1413.0,31.7408325]
[1673629851249,6.37e-06,1413.1,1413.0,33.32772761]
[1673629852498,6.37e-06,1413.1,1413.0,32.27244565]
[1673629852690,6.37e-06,1413.1,1413.0,34.3883058]
[1673629853566,6.37e-06,1413.1,1413.0,35.5883058]
[1673629853989,6.37e-06,1413.1,1413.0,33.47244565]
[1673629856028,6.37e-06,1413.1,1413.0,35.5883058]
[1673629856336,6.37e-06,1413.1,1413.0,32.27244565]
[1673629859750,6.37e-06,1413.1,1413.0,34.3883058]
[1673629860922,6.37e-06,1413.1,1413.0,32.27244565]
[1673629862014,6.37e-06,1413.1,1413.0,34.3883058]
[1673629862952,6.37e-06,1413.1,1413.0,32.80141069]
[1673629863170,6.37e-06,1413.1,1413.0,34.38538631]
[1673629864169,6.37e-06,1413.1,1413.0,34.38536507]
[1673629864395,6.37e-06,1413.1,1413.0,32.26950492]
[1673629866517,6.37e-06,1413.1,1413.0,33.32640634]
[1673629867257,6.37e-06,1413.1,1413.0,31.74245196]
[1673629868099,6.37e-06,1413.1,1413.0,33.32640634]
[1673629868289,6.37e-06,1413.1,1413.0,31.74245196]
[1673629868513,6.37e-06,1413.1,1413.0,28.90512943]
[1673629868743,6.37e-06,1413.1,1413.0,24.24189529]
[1673629868959,6.37e-06,1413.1,1413.0,21.24189529]
[1673629869151,6.37e-06,1413.1,1413.0,21.24389529]
[1673629870342,6.37e-06,1413.1,1413.0,24.24389529]
[1673629871909,6.37e-06,1413.1,1413.0,24.24189529]
[1673629872129,6.37e-06,1413.1,1413.0,25.29879671]
[1673629875757,4.67425305,1413.3,1413.1,0.00282608]
[1673629875758,1.59012122,1413.3,1413.1,0.00282608]
[1673629875970,0.5307,1413.3,1413.2,21.22839]
[1673629876204,7.37541023,1413.4,1413.2,21.23886529]
[1673629876414,5.7862784,1413.4,1413.2,21.23886529]
[1673629877095,4.2792784,1413.4,1413.2,21.23886529]
[1673629877251,7.56727841,1413.4,1413.2,21.23886529]
[1673629877462,4.2792784,1413.4,1413.2,21.23886529]
[1673629877683,7.56727156,1413.4,1413.2,21.23886529]
[1673629877928,5.86841023,1413.4,1413.2,21.23886529]
[1673629880228,0.58709188,1413.4,1413.2,24.18177057]
[1673629880405,25.60444001,1413.5,1413.2,25.23867199]
[1673629880612,24.09744001,1413.5,1413.2,25.23867199]
[1673629881980,24.09744001,1413.5,1413.2,24.18177057]
[1673629882400,24.09744001,1413.5,1413.2,25.23867199]
[1673629882716,1.05942122,1413.4,1413.2,24.18177057]
[1673629883136,1.05942122,1413.4,1413.3,1.43902946]
[1673629883471,23.56674001,1413.5,1413.3,22.66591946]
[1673629883740,23.56674001,1413.5,1413.3,21.23736529]
[1673629884408,2.81462569,1413.4,1413.3,14.16173529]
[1673629884606,2.81462569,1413.4,1413.3,21.23736529]
[1673629885878,2.81462569,1413.4,1413.3,0.01047529]
[1673629886088,4.40375752,1413.4,1413.2,14.16214529]
[1673629886405,7.03646875,1413.4,1413.2,14.16238529]
[1673629886630,2.70494493,1413.4,1413.2,7.08625529]
[1673629886967,4.40385122,1413.4,1413.2,7.08625529]
[1673629887290,1.05942122,1413.3,1413.2,7.08625529]
[1673629887443,1.05942122,1413.3,1413.2,10.08625529]
[1673629888428,2.81474711,1413.3,1413.2,10.08625529]
[1673629888814,2.81474711,1413.3,1413.2,3.01047529]
[1673629889065,2.81474711,1413.3,1413.2,3.0]
[1673629889276,1.05942122,1413.3,1413.2,3.0]
[1673629889496,2.81474711,1413.3,1413.2,3.0]
[1673629890125,1.05942122,1413.3,1413.2,3.0]
[1673629890298,11.35352494,1413.4,1413.2,3.0]
[1673629890299,12.41304616,1413.4,1413.2,3.0]
[1673629890510,2.81476534,1413.3,1413.2,3.0]
[1673629892020,1.05942122,1413.3,1413.2,10.07613]
[1673629892168,1.05942122,1413.3,1413.2,10.08660529]
[1673629892532,2.81474899,1413.3,1413.2,10.08660529]
[1673629893117,2.81474899,1413.3,1413.2,3.01047529]
[1673629893328,2.81474899,1413.3,1413.1,0.06730137]
[1673629893329,2.64855305,1413.3,1413.1,0.06730137]
[1673629893657,18.55514082,1413.3,1413.1,0.00282608]
[1673629893869,16.85620493,1413.3,1413.1,0.00282608]
[1673629894288,1.5,1413.2,1413.1,0.00282608]
[1673629894496,1.05942122,1413.2,1413.1,0.00282608]
[1673629894706,4.31488099,1413.2,1413.1,0.00282608]
[1673629895163,36.60728371,1413.3,1413.1,0.00282608]
[1673629895164,30.59107493,1413.3,1413.1,0.00282608]
[1673629895343,33.22421463,1413.3,1413.1,0.00282608]
[1673629895551,1.05942122,1413.2,1413.1,0.00282608]
[1673629895983,2.5,1413.2,1413.1,0.00282608]
[1673629896214,1.05942122,1413.2,1413.1,0.00282608]
[1673629896388,39.24061341,1413.3,1413.1,0.00282608]
[1673629896389,40.30003463,1413.3,1413.1,0.00282608]
[1673629896827,33.22421463,1413.3,1413.1,0.00282608]
[1673629897005,9.62955122,1413.2,1413.1,0.00282608]
[1673629897216,30.8782969,1413.2,1413.1,0.00282608]
[1673629897667,31.4090969,1413.2,1413.1,0.00282608]
[1673629898097,42.57092663,1413.2,1413.1,0.00282608]
[1673629898424,42.56892171,1413.2,1413.1,0.00282608]
[1673629899212,37.17398333,1413.2,1413.1,0.00282608]
[1673629899430,30.09785333,1413.2,1413.1,0.00282608]
[1673629899587,46.09490072,1413.2,1413.1,0.00282608]
[1673629901068,40.69996234,1413.2,1413.1,0.00282608]
[1673629901285,37.52562984,1413.2,1413.1,0.00282608]
[1673629902110,40.16887385,1413.2,1413.1,0.00282608]
[1673629902890,45.56381223,1413.2,1413.1,0.00282608]
[1673629905574,48.40909464,1412.7,1412.4,0.06430886]
[1673629905788,55.48798464,1412.7,1412.4,0.06430886]
[1673629905997,59.09431736,1412.7,1412.4,0.06430886]
[1673629906241,16.65855,1412.6,1412.4,0.06430886]
[1673629906452,16.71494188,1412.6,1412.4,0.06430886]
[1673629907076,23.79435188,1412.6,1412.4,0.06430886]
[1673629908733,21.29435188,1412.6,1412.4,0.06430886]
[1673629912560,7.13553188,1412.6,1412.4,0.06430886]
[1673629915799,7.13553188,1412.6,1412.4,0.06430886]
[1673629915972,2.034,1412.5,1412.4,1e-08]
[1673629916182,32.2741911,1412.5,1412.4,1e-08]
[1673629916400,27.1656446,1412.5,1412.4,1e-08]
[1673629917713,34.05758298,1412.5,1412.4,1e-08]
[1673629918843,54.05758298,1412.5,1412.4,1e-08]
[1673629920394,54.05758298,1412.5,1412.3,0.05763342]
[1673629920609,6.84533272,1412.4,1412.3,0.05763342]
[1673629920859,48.08857736,1412.4,1412.3,0.05763342]
[1673629921389,48.08857736,1412.4,1412.3,3.42e-06]
[1673629921390,53.48351574,1412.4,1412.3,3.42e-06]
[1673629921580,59.81637736,1412.4,1412.3,3.42e-06]
[1673629921762,65.74241574,1412.4,1412.3,3.42e-06]
[1673629922178,81.77211574,1412.4,1412.3,3.42e-06]
[1673629922607,68.92917736,1412.4,1412.3,3.42e-06]
[1673629923286,74.32411574,1412.4,1412.3,3.42e-06]
[1673629923646,68.92917736,1412.4,1412.3,3.42e-06]
[1673629925706,74.32411574,1412.4,1412.3,3.42e-06]
[1673629926221,68.92917736,1412.4,1412.3,3.42e-06]
[1673629926591,74.32411574,1412.4,1412.3,3.42e-06]
[1673629926817,68.92917736,1412.4,1412.3,3.42e-06]
[1673629927661,74.32411574,1412.4,1412.3,3.42e-06]
[1673629929464,90.35925574,1412.4,1412.3,3.42e-06]
[1673629930096,2.5,1412.3,1412.2,2.28e-06]
[1673629930287,43.4251911,1412.3,1412.2,2.28e-06]
[1673629930497,51.07781762,1412.3,1412.1,8.56e-06]
[1673629930708,24.7234711,1412.2,1412.1,8.56e-06]
[1673629930943,74.92048298,1412.2,1412.1,8.56e-06]
[1673629932405,73.41348298,1412.2,1412.1,8.56e-06]
[1673629935135,68.0185446,1412.2,1412.1,8.56e-06]
[1673629935976,2.5,1412.1,1411.7,0.08499294]
[1673629936185,7.08265,1411.9,1411.7,0.08499294]
[1673629936413,7.13904188,1411.9,1411.7,0.08499294]
[1673629937459,21.30434188,1411.9,1411.7,0.08499294]
[1673629939342,14.22169188,1411.9,1411.7,0.08499294]
[1673629939553,21.30434188,1411.9,1411.7,0.08499294]
[1673629940442,7.13904188,1411.9,1411.7,0.08499294]
[1673629940607,0.05639188,1411.9,1411.7,0.08499294]
[1673629940818,7.08265,1411.9,1411.7,0.08499294]
[1673629941078,7.13904188,1411.9,1411.7,0.08499294]
[1673629941456,0.05639188,1411.9,1411.7,0.08499294]
[1673629941701,61.90507464,1412.0,1411.7,0.08499294]
[1673629942072,61.90507464,1412.0,1411.7,7.16859294]
[1673629942281,38.98408464,1412.0,1411.7,15.75952823]
[1673629942492,38.98408464,1412.0,1411.7,22.84298823]
[1673629943121,31.90172464,1412.0,1411.7,22.84286823]
[1673629943862,38.98388464,1412.0,1411.7,22.84288823]
[1673629944802,31.90172464,1412.0,1411.7,22.84288823]
[1673629945166,31.90172464,1412.0,1411.8,7.15705435]
[1673629945355,31.90172464,1412.0,1411.8,7.17152964]
[1673629945540,31.90172464,1412.0,1411.8,9.54917877]
[1673629946693,38.98391464,1412.0,1411.8,2.46608877]
[1673629947059,38.98391464,1412.0,1411.8,1.56896435]
[1673629949268,20.00282464,1412.0,1411.9,1.497]
[1673629949594,0.05639188,1412.0,1411.9,24.25195]
[1673629949892,20.00282464,1412.2,1411.9,24.26642529]
[1673629950084,20.00282464,1412.2,1412.1,1.495]
[1673629950263,20.00282464,1412.2,1412.1,15.6583]
[1673629950473,20.00282464,1412.2,1412.1,15.67277529]
[1673629951310,0.05639188,1412.2,1412.1,1.50947529]
[1673629951607,12.55529188,1412.3,1412.1,8.57653]
[1673629951798,12.55529188,1412.3,1412.1,15.67265529]
[1673629952577,12.55529188,1412.3,1412.1,1.50947529]
[1673629952817,12.55529188,1412.3,1412.1,1.495]
[1673629953035,19.63600188,1412.3,1412.1,1.495]
[1673629953202,12.55529188,1412.3,1412.1,1.495]
[1673629953633,12.55529188,1412.3,1412.1,8.57655]
[1673629953885,12.55529188,1412.3,1412.1,8.57142529]
[1673629954587,0.58749188,1412.3,1412.1,8.57142529]
[1673629954787,0.5311,1412.3,1412.1,8.57142529]
[1673629954996,87.25751747,1412.4,1412.2,3.014]
[1673629954997,70.37282464,1412.4,1412.2,3.014]
[1673629955216,20.05639188,1412.4,1412.3,22.73692]
[1673629955550,0.05639188,1412.4,1412.3,22.75139529]
[1673629955772,3.74812883,1412.6,1412.3,25.18223482]
[1673629956082,1.05711283,1412.5,1412.4,8.57314]
[1673629956409,1.05711283,1412.5,1412.4,8.22109817]
[1673629956633,1.05711283,1412.5,1412.4,1.21447529]
[1673629956790,2.81353701,1412.5,1412.4,1.2]
[1673629957007,1.05711283,1412.5,1412.4,1.2]
[1673629957233,23.69456159,1412.6,1412.4,17.14593948]
[1673629957566,23.69456159,1412.6,1412.5,1.199]
[1673629957567,1.11350471,1412.6,1412.5,1.199]
[1673629957728,2.81346402,1412.6,1412.5,1.199]
[1673629959420,17.02000022,1412.7,1412.5,22.43792]
[1673629959629,15.43433098,1412.7,1412.5,22.45239529]
[1673629959887,1.11350471,1412.7,1412.6,3.44623953]
[1673629960061,41.16663923,1412.8,1412.6,17.75728]
[1673629960258,20.16309364,1412.8,1412.7,2.395]
[1673629960470,0.16309364,1412.8,1412.7,23.63092]
[1673629960680,0.10670176,1412.8,1412.7,23.64339529]
[1673629960890,0.10670176,1412.8,1412.7,19.76315635]
[1673629961201,0.10670176,1412.8,1412.7,23.36948907]
[1673629961202,1.76e-06,1412.8,1412.7,23.36948907]
[1673629961466,20.00282464,1413.0,1412.8,2.5]
[1673629961674,0.05639188,1413.0,1412.9,17.15428]
[1673629961886,2.82200389,1413.2,1412.9,3.01147529]
[1673629962203,8.25614277,1413.2,1412.9,2.749]
[1673629962356,1.23633465,1413.2,1412.9,2.749]
[1673629962571,2.5,1413.1,1412.8,0.06447529]
[1673629962842,3.55711283,1413.1,1412.7,4.201]
[1673629962989,5.14278207,1413.1,1412.7,4.201]
[1673629963200,5.19917395,1413.1,1412.7,4.201]
[1673629963617,5.19917395,1413.1,1412.7,11.27957]
[1673629963832,5.19917395,1413.1,1412.7,11.29204529]
[1673629964883,2.81321967,1413.0,1412.7,0.01247529]
[1673629965095,9.89038967,1413.0,1412.5,15.86656529]
[1673629965303,8.19067471,1413.0,1412.5,15.86656529]
[1673629965564,2.5,1412.9,1412.5,15.86656529]
[1673629966306,43.06563464,1413.0,1412.5,15.86656529]
[1673629966460,35.98809464,1413.0,1412.5,15.86656529]
[1673629966834,28.91092464,1413.0,1412.6,1.199]
[1673629966987,28.91092464,1413.0,1412.7,7.07854]
[1673629967192,28.91092464,1413.0,1412.7,15.37065529]
[1673629967449,28.91092464,1413.0,1412.9,1.201]
[1673629967668,20.00282464,1413.0,1412.9,1.201]
[1673629967827,20.00282464,1413.0,1412.9,8.27864]
[1673629968033,20.00282464,1413.0,1412.9,8.29111529]
[1673629968267,0.05639188,1413.0,1412.9,8.29111529]
[1673629968472,34.00096741,1413.2,1412.9,8.29111529]
[1673629968717,32.41305458,1413.2,1413.0,1.199]
[1673629969244,20.12565458,1413.2,1413.0,1.199]
[1673629969567,20.12565458,1413.2,1413.1,1.201]
[1673629969727,0.17922182,1413.2,1413.1,8.27764]
[1673629969937,0.12282994,1413.2,1413.1,15.36475529]
[1673629971135,0.12282994,1413.2,1413.1,8.28811529]
[1673629971295,0.12282994,1413.2,1413.1,10.64962515]
[1673629971504,0.12282994,1413.2,1413.1,14.25595787]
[1673629971967,0.12282994,1413.2,1413.1,21.33259787]
[1673629972184,0.12282994,1413.2,1413.1,28.40923787]
[1673629972402,0.12282994,1413.2,1413.1,21.33259787]
[1673629973335,0.12282994,1413.2,1413.1,28.40923787]
[1673629973651,0.12282994,1413.2,1413.1,21.33259787]
[1673629973824,0.12282994,1413.2,1413.1,18.97108801]
[1673629975078,0.12282994,1413.2,1413.1,26.04772801]
[1673629975340,0.12282994,1413.2,1413.1,18.97108801]
[1673629976239,0.12282994,1413.2,1413.1,24.17508293]
[1673629976456,0.12282994,1413.2,1413.1,25.37608293]
[1673629976665,0.12282994,1413.2,1413.1,28.12240238]
[1673629978130,0.12282994,1413.2,1413.1,31.12240238]
[1673629979403,0.12282994,1413.2,1413.1,24.04576238]
[1673629979620,0.12282994,1413.2,1413.1,21.29944293]
[1673629979828,0.12282994,1413.2,1413.1,14.22280293]
[1673629980880,0.12282994,1413.2,1413.1,7.81780801]
[1673629981773,0.12282994,1413.2,1413.1,14.89444801]
[1673629982161,0.12282994,1413.2,1413.1,3.01047529]
[1673629982368,0.12282994,1413.2,1413.1,10.07664]
[1673629982619,0.12282994,1413.2,1413.1,10.08711529]
[1673629983195,0.12282994,1413.2,1413.1,17.16375529]
[1673629984710,0.12282994,1413.2,1413.1,24.24039529]
[1673629984881,0.12282994,1413.2,1413.1,17.16375529]
[1673629985092,0.12282994,1413.2,1413.1,3.01047529]
[1673629985356,0.12282994,1413.2,1413.1,3.0]
[1673629985745,0.12282994,1413.2,1413.1,10.07664]
[1673629986068,0.12282994,1413.2,1413.1,3.01047529]
[1673629986280,0.12282994,1413.2,1413.1,3.0]
[1673629986490,7.19895994,1413.2,1413.0,7.95877529]
[1673629986692,7.25535182,1413.2,1413.0,0.01247529]
[1673629986901,0.17922182,1413.2,1413.0,3.0]
[1673629987094,0.12282994,1413.2,1413.0,3.0]
[1673629987721,8.25607277,1413.2,1413.0,3.0]
[1673629987930,15.38859465,1413.2,1412.9,3.06447529]
[1673629988142,22.46472465,1413.2,1412.9,3.0]
[1673629988670,22.46472465,1413.2,1412.8,3.06447529]
[1673629988884,22.99552465,1413.2,1412.8,3.0]
[1673629989456,24.58119389,1413.2,1412.8,3.0]
[1673629989608,20.13874662,1413.2,1412.8,10.07808]
[1673629989819,20.13874662,1413.2,1412.8,10.09055529]
[1673629990294,2.5,1413.1,1412.8,3.01247529]
[1673629990514,3.55711283,1413.1,1412.8,3.0]
[1673629990696,10.63392283,1413.1,1412.8,3.0]
[1673629990909,10.69031471,1413.1,1412.8,3.0]
[1673629991090,24.84393471,1413.1,1412.7,0.06447529]
[1673629991291,24.84393471,1413.1,1412.6,16.2378]
[1673629991292,26.42960395,1413.1,1412.6,0.01247529]
[1673629991504,1.05711283,1413.0,1412.5,15.37424529]
[1673629991821,14.15541,1412.9,1412.5,4.82180801]
[1673629992056,14.15541,1412.9,1412.5,11.88684272]
[1673629992057,7.13403188,1412.9,1412.5,11.88684272]
[1673629992290,0.05639188,1412.9,1412.5,11.90131801]
[1673629992463,15.26814471,1413.0,1412.5,18.98095801]
[1673629993126,0.23,1412.9,1412.5,26.06059801]
[1673629993441,2.73,1412.9,1412.6,3.0]
[1673629993662,0.23,1412.9,1412.6,10.07913]
[1673629993972,3.04317003,1412.9,1412.6,10.09360529]
[1673629994135,2.78711283,1412.9,1412.6,10.09360529]
[1673629994605,1.28711283,1412.9,1412.6,10.09360529]
[1673629995654,0.23,1412.9,1412.6,27.16289409]
[1673629997275,0.22742969,1412.9,1412.6,27.16289409]
[1673629997536,0.22742969,1412.9,1412.7,1.201]
[1673629997695,9.61500471,1413.0,1412.8,14.15628]
[1673629997908,1.11350471,1413.0,1412.8,19.37396916]